[Event "*** Qualifier 3: Titled Tuesday 3|2 Blitz"]
[Site "Chess.com"]
[Date "2017.04.18"]
[Round "5"]
[White "GianmarcoVaR"]
[Black "Schemato"]
[Result "1-0"]
[WhiteElo "2456"]
[BlackElo "2239"]
[TimeControl "180+2"]
[EndTime "14:07:47 PDT"]
[Termination "GianmarcoVaR won by resignation"]

1. c4 {[%clk 0:02:50.5]} 1... c5 {[%clk 0:03:00.1]} 2. Nc3 {[%clk 0:02:52.4]}
2... g6 {[%clk 0:03:01.3]} 3. g3 {[%clk 0:02:54.1]} 3... Bg7 {[%clk 0:03:02.6]}
4. Bg2 {[%clk 0:02:56]} 4... Nc6 {[%clk 0:03:04.1]} 5. d3 {[%clk 0:02:57.3]}
5... d6 {[%clk 0:03:04.7]} 6. Nf3 {[%clk 0:02:58.8]} 6... Nf6 {[%clk 0:03:00.8]}
7. O-O {[%clk 0:02:59.9]} 7... O-O {[%clk 0:03:01.6]} 8. Bd2 {[%clk 0:03:01.2]}
8... a6 {[%clk 0:03:01.5]} 9. a3 {[%clk 0:03:02.3]} 9... Rb8 {[%clk 0:03:02.5]}
10. Rb1 {[%clk 0:03:01.1]} 10... b5 {[%clk 0:03:02.9]} 11. cxb5 {[%clk
0:03:02.5]} 11... axb5 {[%clk 0:03:04.2]} 12. b4 {[%clk 0:03:04.2]} 12... cxb4
{[%clk 0:03:05]} 13. axb4 {[%clk 0:03:05.5]} 13... Bd7 {[%clk 0:02:58]} 14. Qc1
{[%clk 0:03:06.5]} 14... Qb6 {[%clk 0:02:53.3]} 15. Bh6 {[%clk 0:03:02.8]} 15...
Ra8 {[%clk 0:02:50.3]} 16. Bxg7 {[%clk 0:03:02]} 16... Kxg7 {[%clk 0:02:52.2]}
17. Qb2 {[%clk 0:03:02.8]} 17... Kg8 {[%clk 0:02:45.4]} 18. Rfc1 {[%clk
0:03:03.6]} 18... Ra6 {[%clk 0:02:44.9]} 19. Ra1 {[%clk 0:02:59.3]} 19... Rfa8
{[%clk 0:02:44.9]} 20. Rxa6 {[%clk 0:03:00.1]} 20... Qxa6 {[%clk 0:02:40.4]} 21.
h4 {[%clk 0:02:59.9]} 21... h5 {[%clk 0:02:40.1]} 22. Ng5 {[%clk 0:03:00.5]}
22... Ra7 {[%clk 0:02:34.5]} 23. Qb3 {[%clk 0:02:49.9]} 23... e6 {[%clk
0:02:21.4]} 24. Nce4 {[%clk 0:02:44.5]} 24... Ne8 {[%clk 0:02:08.9]} 25. Qc3
{[%clk 0:02:43.6]} 25... Qa3 {[%clk 0:01:52.6]} 26. Qxa3 {[%clk 0:02:43.4]}
26... Rxa3 {[%clk 0:01:52.5]} 27. Nxd6 {[%clk 0:02:44]} 27... Nxd6 {[%clk
0:01:24.1]} 28. Bxc6 {[%clk 0:02:43.7]} 28... Bxc6 {[%clk 0:01:20.7]} 29. Rxc6
{[%clk 0:02:45.6]} 29... Nf5 {[%clk 0:01:21.2]} 30. Rb6 {[%clk 0:02:30.8]} 30...
Nd4 {[%clk 0:01:19.9]} 31. e3 {[%clk 0:02:27]} 31... Nc2 {[%clk 0:01:18.9]} 32.
Rxb5 {[%clk 0:02:21.2]} 32... Rxd3 {[%clk 0:01:18.1]} 33. Rb8+ {[%clk
0:02:22.1]} 33... Kg7 {[%clk 0:01:18.3]} 34. Rb7 {[%clk 0:02:23.2]} 34... Rb3
{[%clk 0:01:18.4]} 35. b5 {[%clk 0:02:18.4]} 35... Rb1+ {[%clk 0:01:11.8]} 36.
Kh2 {[%clk 0:02:16.3]} 36... Rb2 {[%clk 0:01:10.6]} 37. Kg1 {[%clk 0:01:57.9]}
37... Rb1+ {[%clk 0:01:09.4]} 38. Kg2 {[%clk 0:01:58.9]} 38... Ne1+ {[%clk
0:01:08.1]} 39. Kh3 {[%clk 0:01:56.8]} 39... Nd3 {[%clk 0:01:07]} 40. Rxf7+
{[%clk 0:01:39.9]} 40... Kg8 {[%clk 0:01:07.4]} 41. Rf6 {[%clk 0:01:40.6]} 41...
Kg7 {[%clk 0:01:02.5]} 42. Rxe6 {[%clk 0:01:13.6]} 42... Nxf2+ {[%clk
0:01:01.4]} 43. Kg2 {[%clk 0:01:14.9]} 43... Ng4 {[%clk 0:00:59.8]} 44. b6
{[%clk 0:01:16.1]} 44... Rb2+ {[%clk 0:00:53.9]} 45. Kf1 {[%clk 0:01:14.7]}
45... Rb3 {[%clk 0:00:46.8]} 46. e4 {[%clk 0:01:12.6]} 46... Ne3+ {[%clk
0:00:39.8]} 47. Ke2 {[%clk 0:01:07.7]} 47... Nc4 {[%clk 0:00:41.3]} 48. Re7+
{[%clk 0:01:01.5]} 48... Kf6 {[%clk 0:00:28.2]} 49. Rf7+ {[%clk 0:01:02.6]}
49... Ke5 {[%clk 0:00:29.1]} 50. b7 {[%clk 0:01:02.6]} 50... Nd6 {[%clk
0:00:18.2]} 51. Re7+ {[%clk 0:00:56.5]} 51... Kd4 {[%clk 0:00:19]} 52. Ne6+
{[%clk 0:00:57.4]} 52... Kc4 {[%clk 0:00:16.2]} 53. Rc7+ {[%clk 0:00:54.8]} 1-0

[Event "*** Qualifier 3: Titled Tuesday 3|2 Blitz"]
[Site "Chess.com"]
[Date "2017.04.18"]
[Round "5"]
[White "DanielNaroditsky"]
[Black "rasmussvane"]
[Result "0-1"]
[WhiteElo "2717"]
[BlackElo "2536"]
[TimeControl "180+2"]
[EndTime "14:07:53 PDT"]
[Termination "rasmussvane won on time"]

1. e4 {[%clk 0:03:02]} 1... c6 {[%clk 0:02:58.2]} 2. Nc3 {[%clk 0:03:01.5]} 2...
d5 {[%clk 0:02:58.5]} 3. d4 {[%clk 0:03:03.4]} 3... dxe4 {[%clk 0:02:58.8]} 4.
Nxe4 {[%clk 0:03:05.3]} 4... Bf5 {[%clk 0:03:00]} 5. Ng3 {[%clk 0:03:06.7]} 5...
Bg6 {[%clk 0:03:01.4]} 6. h4 {[%clk 0:03:08.4]} 6... h6 {[%clk 0:03:02.4]} 7.
Nf3 {[%clk 0:03:10.3]} 7... e6 {[%clk 0:03:03.2]} 8. Ne5 {[%clk 0:03:10.6]} 8...
Bh7 {[%clk 0:03:03.8]} 9. Qh5 {[%clk 0:03:06.1]} 9... Qc7 {[%clk 0:03:04.1]} 10.
Bf4 {[%clk 0:03:05.7]} 10... Nf6 {[%clk 0:03:03.7]} 11. Qf3 {[%clk 0:03:05.3]}
11... Bd6 {[%clk 0:02:52.1]} 12. O-O-O {[%clk 0:03:05.9]} 12... Nbd7 {[%clk
0:02:32.9]} 13. Re1 {[%clk 0:03:06.9]} 13... Nd5 {[%clk 0:02:18]} 14. Nh5 {[%clk
0:02:59.9]} 14... Nxf4 {[%clk 0:01:15.5]} 15. Nxg7+ {[%clk 0:02:56.8]} 15... Ke7
{[%clk 0:00:52.4]} 16. Qxf4 {[%clk 0:02:55.2]} 16... Bxe5 {[%clk 0:00:52.2]} 17.
Rxe5 {[%clk 0:02:41]} 17... Nxe5 {[%clk 0:00:44.1]} 18. dxe5 {[%clk 0:02:42.9]}
18... Raf8 {[%clk 0:00:42.3]} 19. Bc4 {[%clk 0:01:19.6]} 19... Kd7 {[%clk
0:00:43.1]} 20. Rd1+ {[%clk 0:01:10.6]} 20... Kc8 {[%clk 0:00:43.6]} 21. Rd6
{[%clk 0:01:12.3]} 21... h5 {[%clk 0:00:23.9]} 22. Nxh5 {[%clk 0:01:04.9]} 22...
Bxc2 {[%clk 0:00:20.1]} 23. Kxc2 {[%clk 0:01:04.9]} 23... Rxh5 {[%clk
0:00:21.1]} 24. Bxe6+ {[%clk 0:01:04.5]} 24... Kb8 {[%clk 0:00:22.3]} 25. Bh3
{[%clk 0:00:54.6]} 25... Re8 {[%clk 0:00:17]} 26. Rd7 {[%clk 0:00:33.3]} 26...
Qxe5 {[%clk 0:00:17.2]} 27. Rxf7 {[%clk 0:00:34.8]} 27... Qxf4 {[%clk
0:00:12.6]} 28. Rxf4 {[%clk 0:00:36.7]} 28... Rd5 {[%clk 0:00:13.2]} 29. Bg4
{[%clk 0:00:34.7]} 29... b5 {[%clk 0:00:13.7]} 30. b4 {[%clk 0:00:31.9]} 30...
a5 {[%clk 0:00:13.4]} 31. Bf3 {[%clk 0:00:33.6]} 31... Rd6 {[%clk 0:00:11.3]}
32. bxa5 {[%clk 0:00:32.9]} 32... Ka7 {[%clk 0:00:12.3]} 33. h5 {[%clk
0:00:29.8]} 33... Ka6 {[%clk 0:00:13.3]} 34. g4 {[%clk 0:00:31.5]} 34... Re5
{[%clk 0:00:13.2]} 35. Be4 {[%clk 0:00:09.3]} 35... Kxa5 {[%clk 0:00:13.3]} 36.
f3 {[%clk 0:00:04.6]} 36... Kb4 {[%clk 0:00:12.2]} 37. Bxc6+ {[%clk 0:00:01.5]}
37... Ka3 {[%clk 0:00:13.4]} 38. Be4 {[%clk 0:00:03.2]} 38... Rc5+ {[%clk
0:00:14.4]} 0-1

[Event "*** Qualifier 3: Titled Tuesday 3|2 Blitz"]
[Site "Chess.com"]
[Date "2017.04.18"]
[Round "5"]
[White "Elshan1985"]
[Black "andreimacovei2000"]
[Result "1-0"]
[WhiteElo "2509"]
[BlackElo "2390"]
[TimeControl "180+2"]
[EndTime "14:07:56 PDT"]
[Termination "Elshan1985 won by resignation"]

1. d4 {[%clk 0:03:02]} 1... Nf6 {[%clk 0:03:00]} 2. Nf3 {[%clk 0:03:02.2]} 2...
g6 {[%clk 0:03:00.7]} 3. Bg5 {[%clk 0:02:52.8]} 3... Bg7 {[%clk 0:03:01.2]} 4.
e3 {[%clk 0:02:54.3]} 4... O-O {[%clk 0:03:01.3]} 5. Nbd2 {[%clk 0:02:54]} 5...
d6 {[%clk 0:02:59.9]} 6. Be2 {[%clk 0:02:54.7]} 6... c5 {[%clk 0:03:00.9]} 7. c3
{[%clk 0:02:54.7]} 7... Be6 {[%clk 0:03:00.9]} 8. O-O {[%clk 0:02:55.4]} 8...
Qb6 {[%clk 0:03:01.4]} 9. Qc2 {[%clk 0:02:56.5]} 9... Nc6 {[%clk 0:02:54.1]} 10.
dxc5 {[%clk 0:02:56.7]} 10... Qxc5 {[%clk 0:02:54.4]} 11. Bxf6 {[%clk
0:02:57.5]} 11... Bxf6 {[%clk 0:02:54.7]} 12. Ne4 {[%clk 0:02:57.8]} 12... Qf5
{[%clk 0:02:47.3]} 13. Bd3 {[%clk 0:02:58.9]} 13... Bg7 {[%clk 0:02:26.3]} 14.
Nxd6 {[%clk 0:02:59.3]} 14... Qa5 {[%clk 0:02:23.5]} 15. Nc4 {[%clk 0:02:57.1]}
15... Qc7 {[%clk 0:02:23.4]} 16. Rad1 {[%clk 0:02:53.1]} 16... a6 {[%clk
0:02:19.9]} 17. Ncd2 {[%clk 0:02:53.6]} 17... b5 {[%clk 0:02:15.6]} 18. a3
{[%clk 0:02:54.5]} 18... Rac8 {[%clk 0:02:12]} 19. Qb1 {[%clk 0:02:54.2]} 19...
Na5 {[%clk 0:02:12.4]} 20. Ng5 {[%clk 0:02:49.6]} 20... Bg4 {[%clk 0:02:08.2]}
21. Ngf3 {[%clk 0:02:44.9]} 21... h6 {[%clk 0:01:58.5]} 22. h3 {[%clk 0:02:45]}
22... Be6 {[%clk 0:01:57.9]} 23. Rfe1 {[%clk 0:02:42.8]} 23... Rfd8 {[%clk
0:01:58]} 24. Bc2 {[%clk 0:02:44.1]} 24... Nc6 {[%clk 0:01:47.6]} 25. Nb3 {[%clk
0:02:43.7]} 25... Bc4 {[%clk 0:01:44.3]} 26. Nbd4 {[%clk 0:02:41.3]} 26... Na5
{[%clk 0:01:38.3]} 27. e4 {[%clk 0:02:35.9]} 27... e5 {[%clk 0:01:38.8]} 28. Ne2
{[%clk 0:02:37]} 28... Nb3 {[%clk 0:01:38.2]} 29. Ng3 {[%clk 0:02:34.6]} 29...
a5 {[%clk 0:01:38.3]} 30. Nf1 {[%clk 0:02:30.8]} 30... a4 {[%clk 0:01:33.4]} 31.
Ne3 {[%clk 0:02:30.7]} 31... Be6 {[%clk 0:01:34.3]} 32. Nd5 {[%clk 0:02:30.1]}
32... Qc5 {[%clk 0:01:33]} 33. Nb4 {[%clk 0:02:27.1]} 33... Bc4 {[%clk
0:01:24.6]} 34. Bd3 {[%clk 0:02:26.1]} 34... Be6 {[%clk 0:01:24.5]} 35. Nd2
{[%clk 0:02:24.1]} 35... Qb6 {[%clk 0:01:21.5]} 36. Nxb3 {[%clk 0:02:24.9]}
36... Bxb3 {[%clk 0:01:15.2]} 37. Bc2 {[%clk 0:02:25.7]} 37... Be6 {[%clk
0:01:14.9]} 38. Nd5 {[%clk 0:02:22.7]} 38... Qc5 {[%clk 0:01:16.1]} 39. Ne3
{[%clk 0:02:22]} 39... Bf8 {[%clk 0:01:16.2]} 40. Qc1 {[%clk 0:02:22.1]} 40...
h5 {[%clk 0:01:15.5]} 41. Nf1 {[%clk 0:02:21.9]} 41... Be7 {[%clk 0:01:14.9]}
42. Rxd8+ {[%clk 0:02:22.6]} 42... Rxd8 {[%clk 0:01:15.8]} 43. Rd1 {[%clk
0:02:24.3]} 43... Rxd1 {[%clk 0:01:06.5]} 44. Qxd1 {[%clk 0:02:26.2]} 44... Qa7
{[%clk 0:01:05.3]} 45. Bd3 {[%clk 0:02:11.7]} 45... Bc5 {[%clk 0:01:01.3]} 46.
Qe2 {[%clk 0:02:12.8]} 46... Bc4 {[%clk 0:00:57.7]} 47. Bxc4 {[%clk 0:02:13.4]}
47... bxc4 {[%clk 0:00:59]} 48. Nd2 {[%clk 0:02:14.9]} 48... Qb6 {[%clk
0:00:56.1]} 49. Nxc4 {[%clk 0:02:15.8]} 49... Qb5 {[%clk 0:00:54.9]} 50. Kf1
{[%clk 0:02:17]} 50... f6 {[%clk 0:00:53.3]} 51. Ne3 {[%clk 0:02:15.7]} 51...
Qb6 {[%clk 0:00:48]} 52. Nd5 {[%clk 0:02:16.6]} 52... Qb3 {[%clk 0:00:39.4]} 53.
Nxf6+ {[%clk 0:02:16]} 53... Kg7 {[%clk 0:00:40.8]} 54. Nd5 {[%clk 0:02:15.5]}
54... Qa2 {[%clk 0:00:41.7]} 55. g3 {[%clk 0:02:16.6]} 55... Qb1+ {[%clk
0:00:40.3]} 56. Kg2 {[%clk 0:02:17.8]} 56... h4 {[%clk 0:00:40.3]} 57. gxh4
{[%clk 0:02:18.5]} 57... Qc1 {[%clk 0:00:41.3]} 58. Qb5 {[%clk 0:01:48.3]} 58...
Bf8 {[%clk 0:00:20.4]} 59. Ne3 {[%clk 0:01:43.8]} 59... Qb1 {[%clk 0:00:20.3]}
60. Qxe5+ {[%clk 0:01:43.9]} 60... Kh7 {[%clk 0:00:21.7]} 61. h5 {[%clk
0:01:37.9]} 61... gxh5 {[%clk 0:00:17.6]} 62. Qxh5+ {[%clk 0:01:37.7]} 62... Kg8
{[%clk 0:00:18.9]} 63. Qg6+ {[%clk 0:01:38.3]} 63... Bg7 {[%clk 0:00:20.3]} 64.
Qe8+ {[%clk 0:01:32.6]} 64... Kh7 {[%clk 0:00:21.2]} 65. Nf5 {[%clk 0:01:33.1]}
65... Qd1 {[%clk 0:00:18.4]} 66. Qf7 {[%clk 0:01:29.7]} 1-0

[Event "*** Qualifier 3: Titled Tuesday 3|2 Blitz"]
[Site "Chess.com"]
[Date "2017.04.18"]
[Round "5"]
[White "DariuszMikrut"]
[Black "saraswathii"]
[Result "1-0"]
[WhiteElo "2402"]
[BlackElo "2223"]
[TimeControl "180+2"]
[EndTime "14:08:01 PDT"]
[Termination "DariuszMikrut won by resignation"]

1. d4 {[%clk 0:03:02]} 1... d5 {[%clk 0:02:58.5]} 2. c4 {[%clk 0:03:02.8]} 2...
c6 {[%clk 0:02:59]} 3. Nf3 {[%clk 0:03:03]} 3... Nf6 {[%clk 0:02:59.1]} 4. e3
{[%clk 0:03:03.6]} 4... g6 {[%clk 0:02:59.6]} 5. Nc3 {[%clk 0:03:03.4]} 5... Bg7
{[%clk 0:03:00.3]} 6. Bd3 {[%clk 0:03:01.3]} 6... O-O {[%clk 0:03:01]} 7. O-O
{[%clk 0:03:00.4]} 7... Bg4 {[%clk 0:02:58]} 8. h3 {[%clk 0:03:00.9]} 8... Bxf3
{[%clk 0:02:57.8]} 9. Qxf3 {[%clk 0:03:01.8]} 9... e6 {[%clk 0:02:55.5]} 10. Bd2
{[%clk 0:03:02]} 10... Nbd7 {[%clk 0:02:55.2]} 11. cxd5 {[%clk 0:03:03]} 11...
exd5 {[%clk 0:02:55.7]} 12. b4 {[%clk 0:03:03.1]} 12... Qe7 {[%clk 0:02:54.8]}
13. Rab1 {[%clk 0:03:03.4]} 13... Rfe8 {[%clk 0:02:51.9]} 14. b5 {[%clk
0:02:58.4]} 14... c5 {[%clk 0:02:44]} 15. Nxd5 {[%clk 0:02:54.1]} 15... Nxd5
{[%clk 0:02:44]} 16. Qxd5 {[%clk 0:02:55.1]} 16... cxd4 {[%clk 0:02:44.9]} 17.
exd4 {[%clk 0:02:55.1]} 17... Nb6 {[%clk 0:02:42.8]} 18. Qf3 {[%clk 0:02:52.8]}
18... Bxd4 {[%clk 0:02:41.1]} 19. Bb4 {[%clk 0:02:51.2]} 19... Qe6 {[%clk
0:02:28.3]} 20. Rfd1 {[%clk 0:02:41.3]} 20... Qxa2 {[%clk 0:02:21.7]} 21. Rbc1
{[%clk 0:02:23.3]} 21... Rac8 {[%clk 0:02:13.1]} 22. Rxc8 {[%clk 0:02:21.5]}
22... Rxc8 {[%clk 0:02:13.1]} 23. h4 {[%clk 0:02:07.3]} 23... h5 {[%clk
0:01:54.3]} 24. Be4 {[%clk 0:02:07]} 24... Rd8 {[%clk 0:01:50]} 25. Kh1 {[%clk
0:01:47.5]} 25... Qa4 {[%clk 0:01:34.5]} 26. Bc3 {[%clk 0:01:37.7]} 26... Rd7
{[%clk 0:01:32.6]} 27. Rxd4 {[%clk 0:01:29.7]} 27... Rxd4 {[%clk 0:01:32.9]} 28.
Qf6 {[%clk 0:01:28.9]} 28... Nd5 {[%clk 0:01:12.1]} 29. Bxd5 {[%clk 0:01:15.6]}
29... Qd1+ {[%clk 0:01:07.7]} 30. Kh2 {[%clk 0:01:15.4]} 30... Rxh4+ {[%clk
0:00:33.3]} 31. Qxh4 {[%clk 0:01:10.2]} 31... Qxd5 {[%clk 0:00:33.6]} 32. Qf6
{[%clk 0:01:08.2]} 32... Kf8 {[%clk 0:00:33]} 33. Bd4 {[%clk 0:00:58.2]} 33...
b6 {[%clk 0:00:23.6]} 34. Qh8+ {[%clk 0:00:40.4]} 34... Ke7 {[%clk 0:00:23.6]}
35. Qe5+ {[%clk 0:00:42]} 35... Qxe5+ {[%clk 0:00:18.7]} 36. Bxe5 {[%clk
0:00:43.9]} 36... Ke6 {[%clk 0:00:20.1]} 37. Bb8 {[%clk 0:00:44.4]} 37... Kd5
{[%clk 0:00:21.7]} 38. Bxa7 {[%clk 0:00:45.2]} 38... Kc5 {[%clk 0:00:23.4]} 39.
Kg3 {[%clk 0:00:45.5]} 39... g5 {[%clk 0:00:23.5]} 40. Bb8 {[%clk 0:00:43.9]}
40... Kxb5 {[%clk 0:00:23.2]} 41. Be5 {[%clk 0:00:44.1]} 41... Kc4 {[%clk
0:00:20.6]} 42. Bf6 {[%clk 0:00:44.6]} 42... g4 {[%clk 0:00:22.1]} 43. Kh4
{[%clk 0:00:45.5]} 43... Kd3 {[%clk 0:00:22.4]} 44. Kxh5 {[%clk 0:00:46.6]}
44... Ke2 {[%clk 0:00:23.6]} 45. Bd4 {[%clk 0:00:45.4]} 45... g3 {[%clk
0:00:21.4]} 46. fxg3 {[%clk 0:00:42.5]} 46... Kf1 {[%clk 0:00:22.6]} 47. Bxb6
{[%clk 0:00:41.8]} 47... Kxg2 {[%clk 0:00:23.8]} 48. g4 {[%clk 0:00:42.7]} 48...
Kg3 {[%clk 0:00:25.1]} 49. g5 {[%clk 0:00:43.9]} 49... Kf4 {[%clk 0:00:26.3]}
50. Bd8 {[%clk 0:00:44.5]} 50... Kf5 {[%clk 0:00:27.3]} 51. Bf6 {[%clk
0:00:44.2]} 1-0

[Event "*** Qualifier 3: Titled Tuesday 3|2 Blitz"]
[Site "Chess.com"]
[Date "2017.04.18"]
[Round "5"]
[White "GamayevOleg"]
[Black "Abrito99"]
[Result "1-0"]
[WhiteElo "2415"]
[BlackElo "2335"]
[TimeControl "180+2"]
[EndTime "14:08:06 PDT"]
[Termination "GamayevOleg won by checkmate"]

1. d3 {[%clk 0:03:01.9]} 1... Nf6 {[%clk 0:03:00.3]} 2. e4 {[%clk 0:03:03.1]}
2... e6 {[%clk 0:03:00.1]} 3. Nf3 {[%clk 0:03:03.8]} 3... d5 {[%clk 0:03:01]} 4.
Nbd2 {[%clk 0:03:05.1]} 4... Be7 {[%clk 0:03:02.1]} 5. Be2 {[%clk 0:03:06.1]}
5... c5 {[%clk 0:03:03.6]} 6. O-O {[%clk 0:03:07]} 6... O-O {[%clk 0:03:05.3]}
7. Re1 {[%clk 0:03:08.5]} 7... Nc6 {[%clk 0:03:06]} 8. a4 {[%clk 0:03:09.3]}
8... a6 {[%clk 0:03:05.2]} 9. c3 {[%clk 0:03:09.8]} 9... Rb8 {[%clk 0:03:03.1]}
10. exd5 {[%clk 0:03:06.1]} 10... exd5 {[%clk 0:03:02.4]} 11. Nf1 {[%clk
0:03:07.3]} 11... Bd6 {[%clk 0:02:59.1]} 12. Ng3 {[%clk 0:03:04.5]} 12... Qc7
{[%clk 0:02:57]} 13. Bg5 {[%clk 0:03:03.6]} 13... Ne8 {[%clk 0:02:53.7]} 14. d4
{[%clk 0:02:52.6]} 14... c4 {[%clk 0:02:46]} 15. b4 {[%clk 0:02:47.1]} 15...
cxb3 {[%clk 0:02:45.7]} 16. Qxb3 {[%clk 0:02:47.4]} 16... Be6 {[%clk 0:02:45.5]}
17. Nd2 {[%clk 0:02:36.9]} 17... f6 {[%clk 0:02:35.7]} 18. Be3 {[%clk
0:02:36.3]} 18... f5 {[%clk 0:02:36.3]} 19. Bf3 {[%clk 0:02:04.3]} 19... Na5
{[%clk 0:02:20.5]} 20. Qc2 {[%clk 0:01:56.3]} 20... Qd7 {[%clk 0:02:08]} 21. Ne2
{[%clk 0:01:51]} 21... f4 {[%clk 0:02:02.8]} 22. Bxf4 {[%clk 0:01:45.3]} 22...
Bxf4 {[%clk 0:02:03.5]} 23. Nxf4 {[%clk 0:01:46.5]} 23... Rxf4 {[%clk 0:02:05]}
24. Qa2 {[%clk 0:01:31.2]} 24... Nc7 {[%clk 0:01:52.5]} 25. Re3 {[%clk
0:01:20.9]} 25... Rbf8 {[%clk 0:01:47.5]} 26. Rae1 {[%clk 0:01:21.1]} 26... Kh8
{[%clk 0:01:40.6]} 27. Qb1 {[%clk 0:01:02.6]} 27... Qc6 {[%clk 0:01:18.3]} 28.
Qb4 {[%clk 0:00:57.3]} 28... b6 {[%clk 0:01:00.1]} 29. Qe7 {[%clk 0:00:55.4]}
29... R4f7 {[%clk 0:00:55.1]} 30. Qg5 {[%clk 0:00:43.7]} 30... h6 {[%clk
0:00:48.6]} 31. Qh4 {[%clk 0:00:41]} 31... Nc4 {[%clk 0:00:28.4]} 32. Nxc4
{[%clk 0:00:41]} 32... Qxc4 {[%clk 0:00:29.1]} 33. Rxe6 {[%clk 0:00:37.3]} 33...
Nxe6 {[%clk 0:00:29.6]} 34. Rxe6 {[%clk 0:00:37.8]} 34... Rf6 {[%clk 0:00:19.2]}
35. Re3 {[%clk 0:00:33.5]} 35... Qb3 {[%clk 0:00:18.6]} 36. h3 {[%clk 0:00:33]}
36... Qxa4 {[%clk 0:00:17.4]} 37. Bxd5 {[%clk 0:00:34.1]} 37... Rxf2 {[%clk
0:00:16]} 38. Be4 {[%clk 0:00:31.3]} 38... Rf1+ {[%clk 0:00:13.5]} 39. Kh2
{[%clk 0:00:32.3]} 39... Qd7 {[%clk 0:00:14.8]} 40. Rg3 {[%clk 0:00:21.8]} 40...
Qd6 {[%clk 0:00:14.7]} 41. Qg4 {[%clk 0:00:21.5]} 41... Qf6 {[%clk 0:00:12.8]}
42. Bd3 {[%clk 0:00:21.2]} 42... Re1 {[%clk 0:00:12]} 43. Rf3 {[%clk 0:00:19.5]}
43... Qd6+ {[%clk 0:00:11.5]} 44. Rg3 {[%clk 0:00:21.1]} 44... Qe6 {[%clk
0:00:08]} 45. Qxg7# {[%clk 0:00:21.4]} 1-0

[Event "*** Qualifier 3: Titled Tuesday 3|2 Blitz"]
[Site "Chess.com"]
[Date "2017.04.18"]
[Round "5"]
[White "Izoria123"]
[Black "johnathan113"]
[Result "1-0"]
[WhiteElo "2655"]
[BlackElo "2475"]
[TimeControl "180+2"]
[EndTime "14:08:08 PDT"]
[Termination "Izoria123 won by resignation"]

1. Nf3 {[%clk 0:03:02]} 1... Nf6 {[%clk 0:03:00.9]} 2. c4 {[%clk 0:03:02.5]}
2... g6 {[%clk 0:03:02.2]} 3. g3 {[%clk 0:03:02.6]} 3... Bg7 {[%clk 0:03:03.4]}
4. Bg2 {[%clk 0:03:04.2]} 4... O-O {[%clk 0:03:05.3]} 5. O-O {[%clk 0:03:05.8]}
5... d6 {[%clk 0:03:07.2]} 6. Nc3 {[%clk 0:03:06.4]} 6... Nc6 {[%clk 0:02:49.4]}
7. d3 {[%clk 0:02:59.4]} 7... e5 {[%clk 0:02:49]} 8. Bg5 {[%clk 0:02:57.8]} 8...
h6 {[%clk 0:02:48.8]} 9. Bxf6 {[%clk 0:02:58.4]} 9... Bxf6 {[%clk 0:02:50.1]}
10. Rb1 {[%clk 0:02:59.7]} 10... a5 {[%clk 0:02:48.4]} 11. a3 {[%clk 0:03:00.4]}
11... Bg7 {[%clk 0:02:49.2]} 12. b4 {[%clk 0:03:00.9]} 12... axb4 {[%clk
0:02:50.6]} 13. axb4 {[%clk 0:03:02.8]} 13... Be6 {[%clk 0:02:49.1]} 14. b5
{[%clk 0:02:59.9]} 14... Ne7 {[%clk 0:02:48.1]} 15. Qb3 {[%clk 0:02:55.5]} 15...
Qd7 {[%clk 0:02:44.2]} 16. Nd2 {[%clk 0:02:50.8]} 16... c6 {[%clk 0:02:44.6]}
17. bxc6 {[%clk 0:02:38.3]} 17... bxc6 {[%clk 0:02:46.5]} 18. Qb7 {[%clk
0:02:39.2]} 18... Rfd8 {[%clk 0:02:25.2]} 19. Rfc1 {[%clk 0:02:32.4]} 19... Ra3
{[%clk 0:01:57.8]} 20. Qxd7 {[%clk 0:02:15.4]} 20... Rxd7 {[%clk 0:01:58.5]} 21.
Rb8+ {[%clk 0:02:16.2]} 21... Kh7 {[%clk 0:01:59.3]} 22. Rb6 {[%clk 0:02:16.3]}
22... d5 {[%clk 0:01:45.3]} 23. Nb3 {[%clk 0:02:08.8]} 23... dxc4 {[%clk
0:00:59.8]} 24. Nc5 {[%clk 0:02:09.7]} 24... cxd3 {[%clk 0:00:45.9]} 25. exd3
{[%clk 0:02:10.7]} 25... Rd4 {[%clk 0:00:37]} 26. Nxe6 {[%clk 0:02:08.4]} 26...
fxe6 {[%clk 0:00:38.9]} 27. Be4 {[%clk 0:02:08]} 27... Nd5 {[%clk 0:00:33.5]}
28. Rxc6 {[%clk 0:02:08]} 28... Nxc3 {[%clk 0:00:20.1]} 29. R1xc3 {[%clk
0:02:09.9]} 29... Rxc3 {[%clk 0:00:20.4]} 30. Rxc3 {[%clk 0:02:11.8]} 30... Rd7
{[%clk 0:00:21.1]} 31. Rc6 {[%clk 0:02:10.5]} 31... Re7 {[%clk 0:00:22.1]} 32.
h4 {[%clk 0:02:10.3]} 32... h5 {[%clk 0:00:22.6]} 33. Kg2 {[%clk 0:02:11.5]}
33... Bf6 {[%clk 0:00:22]} 34. Kh3 {[%clk 0:02:10.5]} 34... Kg7 {[%clk
0:00:23.2]} 35. Rc5 {[%clk 0:02:10]} 35... Rd7 {[%clk 0:00:22.4]} 36. Rb5 {[%clk
0:02:10.1]} 36... Rc7 {[%clk 0:00:23.1]} 37. f3 {[%clk 0:02:09.1]} 37... Rd7
{[%clk 0:00:21.6]} 38. g4 {[%clk 0:02:09.5]} 38... hxg4+ {[%clk 0:00:22.3]} 39.
fxg4 {[%clk 0:02:11.4]} 39... g5 {[%clk 0:00:21.4]} 40. h5 {[%clk 0:02:11.9]}
40... Rc7 {[%clk 0:00:20.8]} 41. Rb6 {[%clk 0:02:12.3]} 41... Re7 {[%clk
0:00:21.5]} 42. Kg2 {[%clk 0:02:12.4]} 42... Kh6 {[%clk 0:00:21.7]} 43. Rc6
{[%clk 0:02:13]} 43... Kg7 {[%clk 0:00:22.6]} 44. Kf3 {[%clk 0:02:14.1]} 44...
Kh6 {[%clk 0:00:23.1]} 45. Ke2 {[%clk 0:02:15.4]} 45... Kg7 {[%clk 0:00:22.4]}
46. Rc8 {[%clk 0:02:11.3]} 46... Rd7 {[%clk 0:00:18.7]} 47. Kd1 {[%clk
0:02:09.1]} 47... Rd8 {[%clk 0:00:19.3]} 48. Rc7+ {[%clk 0:02:09.6]} 48... Kg8
{[%clk 0:00:20.6]} 49. h6 {[%clk 0:02:05.1]} 49... Re8 {[%clk 0:00:21.6]} 50.
Bg6 {[%clk 0:02:00.5]} 50... Rd8 {[%clk 0:00:20]} 51. Ke2 {[%clk 0:01:57]} 51...
Rf8 {[%clk 0:00:14.6]} 52. Rc6 {[%clk 0:01:56.3]} 52... Bd8 {[%clk 0:00:08.7]}
53. Rxe6 {[%clk 0:01:56.2]} 53... Bb6 {[%clk 0:00:05.1]} 54. Bf5 {[%clk
0:01:53.9]} 54... Bd4 {[%clk 0:00:04.7]} 55. Rg6+ {[%clk 0:01:52.5]} 55... Kh8
{[%clk 0:00:03.3]} 56. Rxg5 {[%clk 0:01:53.5]} 56... Re8 {[%clk 0:00:03.9]} 57.
Rg6 {[%clk 0:01:51.1]} 57... Bb2 {[%clk 0:00:04.5]} 58. Rc6 {[%clk 0:01:49.5]}
58... Rf8 {[%clk 0:00:03.7]} 59. Be4 {[%clk 0:01:43.1]} 59... Bd4 {[%clk
0:00:04.9]} 60. g5 {[%clk 0:01:44.1]} 60... Rf2+ {[%clk 0:00:06]} 61. Ke1 {[%clk
0:01:44.9]} 61... Rf8 {[%clk 0:00:07.3]} 62. g6 {[%clk 0:01:45.6]} 62... Kg8
{[%clk 0:00:08.6]} 63. Bd5+ {[%clk 0:01:43.7]} 1-0